[Event "*** Titled Tuesday 3|2 Blitz"]
[Site "Chess.com"]
[Date "2015.12.01"]
[Round "3"]
[White "Gabrielian_Artur"]
[Black "MateusViageiro"]
[Result "1-0"]
[WhiteElo "2477"]
[BlackElo "2290"]
[TimeControl "180+2"]
[EndTime "11:31:09 PST"]
[Termination "Gabrielian_Artur won by resignation"]

1. e4 {[%clk 0:03:01]} 1... c5 {[%clk 0:03:00.1]} 2. Nf3 {[%clk 0:03:01.5]} 2...
d6 {[%clk 0:03:01.6]} 3. d4 {[%clk 0:03:02.5]} 3... cxd4 {[%clk 0:03:02.7]} 4.
Nxd4 {[%clk 0:03:03.1]} 4... Nf6 {[%clk 0:03:03.2]} 5. Nc3 {[%clk 0:03:04.3]}
5... a6 {[%clk 0:03:04.2]} 6. Be3 {[%clk 0:03:04.9]} 6... Ng4 {[%clk 0:03:03.4]}
7. Bc1 {[%clk 0:03:04.7]} 7... Nf6 {[%clk 0:03:03.7]} 8. f3 {[%clk 0:03:05.6]}
8... Qb6 {[%clk 0:03:03.3]} 9. Nb3 {[%clk 0:03:04]} 9... Nc6 {[%clk 0:03:03.9]}
10. Qe2 {[%clk 0:03:04.9]} 10... Qc7 {[%clk 0:03:04.1]} 11. Be3 {[%clk
0:03:02.3]} 11... e6 {[%clk 0:03:05.5]} 12. O-O-O {[%clk 0:03:03.1]} 12... Be7
{[%clk 0:03:07]} 13. g4 {[%clk 0:03:04.4]} 13... b5 {[%clk 0:03:08]} 14. h4
{[%clk 0:03:03.5]} 14... Bb7 {[%clk 0:03:08.8]} 15. h5 {[%clk 0:03:02.9]} 15...
Ne5 {[%clk 0:03:06.7]} 16. g5 {[%clk 0:03:02.4]} 16... Nfd7 {[%clk 0:03:07.1]}
17. Kb1 {[%clk 0:02:59.3]} 17... Nc4 {[%clk 0:03:06.6]} 18. Bc1 {[%clk
0:02:59.8]} 18... Rc8 {[%clk 0:03:04.1]} 19. a3 {[%clk 0:02:31.4]} 19... Nxa3+
{[%clk 0:03:03.8]} 20. bxa3 {[%clk 0:02:32.2]} 20... Qxc3 {[%clk 0:03:04.7]} 21.
Bb2 {[%clk 0:02:33.6]} 21... Qc7 {[%clk 0:03:00.6]} 22. Bxg7 {[%clk 0:02:32.1]}
22... Rg8 {[%clk 0:03:01.6]} 23. h6 {[%clk 0:02:31.9]} 23... Bxg5 {[%clk
0:02:58.7]} 24. Bh3 {[%clk 0:02:31]} 24... Nb6 {[%clk 0:02:53.6]} 25. Rhg1
{[%clk 0:02:29.7]} 25... Be7 {[%clk 0:02:48]} 26. Na5 {[%clk 0:02:06.3]} 26...
Ba8 {[%clk 0:02:43.8]} 27. Bd4 {[%clk 0:02:04.5]} 27... Na4 {[%clk 0:02:43.9]}
28. Rxg8+ {[%clk 0:02:04.5]} 28... Kd7 {[%clk 0:02:42.2]} 29. Rxc8 {[%clk
0:02:05]} 29... Qxc8 {[%clk 0:02:42.6]} 30. c4 {[%clk 0:02:00.7]} 30... Qd8
{[%clk 0:02:26.1]} 31. Qe1 {[%clk 0:01:59.4]} 31... Ke8 {[%clk 0:02:22.6]} 32.
cxb5 {[%clk 0:01:58.2]} 32... Bf6 {[%clk 0:02:16]} 33. Qb4 {[%clk 0:01:48.2]}
33... Bxd4 {[%clk 0:02:14.4]} 34. Rxd4 {[%clk 0:01:49.1]} 34... Nc5 {[%clk
0:02:13.4]} 35. Qxc5 {[%clk 0:01:44.7]} 35... dxc5 {[%clk 0:02:13.7]} 36. Rxd8+
{[%clk 0:01:45.5]} 36... Kxd8 {[%clk 0:02:14.3]} 37. b6 {[%clk 0:01:46.6]} 37...
Kc8 {[%clk 0:01:46.5]} 38. Kb2 {[%clk 0:01:46.5]} 38... Kb8 {[%clk 0:01:44.2]}
39. Kc3 {[%clk 0:01:46.7]} 39... Bb7 {[%clk 0:01:44]} 1-0

[Event "*** Titled Tuesday 3|2 Blitz"]
[Site "Chess.com"]
[Date "2015.12.01"]
[Round "3"]
[White "alex_zapata"]
[Black "Svetlin_Mladenov"]
[Result "1/2-1/2"]
[WhiteElo "2171"]
[BlackElo "2315"]
[TimeControl "180+2"]
[EndTime "11:31:09 PST"]
[Termination "Game drawn by repetition"]

1. e4 {[%clk 0:03:01.9]} 1... c5 {[%clk 0:03:00.3]} 2. Nf3 {[%clk 0:03:02.6]}
2... Nc6 {[%clk 0:03:01.5]} 3. d4 {[%clk 0:03:04.1]} 3... cxd4 {[%clk
0:03:02.7]} 4. Nxd4 {[%clk 0:03:06]} 4... Nf6 {[%clk 0:03:04.4]} 5. Nc3 {[%clk
0:03:06.4]} 5... d6 {[%clk 0:03:05.8]} 6. Bg5 {[%clk 0:03:05.9]} 6... e6 {[%clk
0:03:06.6]} 7. Qd2 {[%clk 0:03:07.4]} 7... a6 {[%clk 0:03:08.1]} 8. O-O-O {[%clk
0:03:08]} 8... Bd7 {[%clk 0:03:09.7]} 9. f3 {[%clk 0:03:06]} 9... b5 {[%clk
0:03:07.5]} 10. Nxc6 {[%clk 0:03:05.8]} 10... Bxc6 {[%clk 0:03:08.3]} 11. Ne2
{[%clk 0:03:07.7]} 11... Be7 {[%clk 0:03:06.7]} 12. Nd4 {[%clk 0:03:07.7]} 12...
Bb7 {[%clk 0:03:00.4]} 13. h4 {[%clk 0:03:08.5]} 13... h6 {[%clk 0:03:00.5]} 14.
Be3 {[%clk 0:03:07.6]} 14... h5 {[%clk 0:03:01.6]} 15. Kb1 {[%clk 0:02:59.1]}
15... Rc8 {[%clk 0:03:02.1]} 16. g3 {[%clk 0:02:45.5]} 16... g6 {[%clk
0:03:02.1]} 17. Bh3 {[%clk 0:02:41.3]} 17... Rc4 {[%clk 0:02:52.1]} 18. b3
{[%clk 0:02:41]} 18... Rc8 {[%clk 0:02:49.1]} 19. Rhe1 {[%clk 0:02:34.7]} 19...
Qc7 {[%clk 0:02:35.4]} 20. Qf2 {[%clk 0:02:28.3]} 20... e5 {[%clk 0:02:28.8]}
21. Bxc8 {[%clk 0:02:23.6]} 21... exd4 {[%clk 0:02:29.7]} 22. Bxb7 {[%clk
0:02:24.4]} 22... dxe3 {[%clk 0:02:30.2]} 23. Qxe3 {[%clk 0:02:16.6]} 23... Qxb7
{[%clk 0:02:31]} 24. e5 {[%clk 0:02:16.3]} 24... dxe5 {[%clk 0:02:32]} 25. Qxe5
{[%clk 0:02:17.7]} 25... Kf8 {[%clk 0:02:32.2]} 26. Rd6 {[%clk 0:01:52.2]} 26...
Bxd6 {[%clk 0:02:01.3]} 27. Qxf6 {[%clk 0:01:49.1]} 27... Kg8 {[%clk 0:02:02.6]}
28. Qxd6 {[%clk 0:01:45.6]} 28... Qxf3 {[%clk 0:02:00.7]} 29. Qxa6 {[%clk
0:01:26]} 29... Kh7 {[%clk 0:01:55.9]} 30. Qxb5 {[%clk 0:01:20.5]} 30... Qxg3
{[%clk 0:01:56.5]} 31. Re7 {[%clk 0:01:15.1]} 31... Rf8 {[%clk 0:01:52.7]} 32.
Qd5 {[%clk 0:01:07.9]} 32... Qxh4 {[%clk 0:01:46.7]} 33. Rxf7+ {[%clk
0:01:07.2]} 33... Rxf7 {[%clk 0:01:48.1]} 34. Qxf7+ {[%clk 0:01:09]} 34... Kh6
{[%clk 0:01:49.7]} 35. Qf8+ {[%clk 0:01:09]} 35... Kh7 {[%clk 0:01:48]} 36. Qf7+
{[%clk 0:01:08.5]} 36... Kh6 {[%clk 0:01:49.3]} 37. Qf8+ {[%clk 0:01:09.7]}
37... Kh7 {[%clk 0:01:49.9]} 38. Qf7+ {[%clk 0:01:08]} 1/2-1/2

[Event "*** Titled Tuesday 3|2 Blitz"]
[Site "Chess.com"]
[Date "2015.12.01"]
[Round "3"]
[White "gumersindo"]
[Black "Herman-NY"]
[Result "1-0"]
[WhiteElo "2200"]
[BlackElo "2188"]
[TimeControl "180+2"]
[EndTime "11:31:13 PST"]
[Termination "gumersindo won by resignation"]

1. d4 {[%clk 0:03:01.9]} 1... d5 {[%clk 0:02:56.3]} 2. c4 {[%clk 0:03:02.1]}
2... e6 {[%clk 0:02:57.4]} 3. Nc3 {[%clk 0:03:02.5]} 3... c6 {[%clk 0:02:58.5]}
4. e3 {[%clk 0:02:59.8]} 4... Nh6 {[%clk 0:02:56.9]} 5. Nf3 {[%clk 0:03:00.6]}
5... f5 {[%clk 0:02:53.6]} 6. Qc2 {[%clk 0:03:01.8]} 6... Bd6 {[%clk 0:02:53.5]}
7. Bd3 {[%clk 0:02:57.7]} 7... O-O {[%clk 0:02:51.2]} 8. Bd2 {[%clk 0:02:59.1]}
8... Nd7 {[%clk 0:02:50.8]} 9. O-O-O {[%clk 0:02:59.7]} 9... b6 {[%clk
0:02:49.5]} 10. cxd5 {[%clk 0:02:58.2]} 10... exd5 {[%clk 0:02:49.2]} 11. Kb1
{[%clk 0:02:58.6]} 11... Bb7 {[%clk 0:02:45.2]} 12. h4 {[%clk 0:02:48.9]} 12...
Qf6 {[%clk 0:02:33.4]} 13. Ng5 {[%clk 0:02:48.7]} 13... b5 {[%clk 0:02:23.2]}
14. f3 {[%clk 0:02:40.9]} 14... Nb6 {[%clk 0:02:21.6]} 15. Rdf1 {[%clk 0:02:36]}
15... Rae8 {[%clk 0:02:03.1]} 16. g4 {[%clk 0:02:35]} 16... Nc4 {[%clk
0:01:49.5]} 17. gxf5 {[%clk 0:02:32.9]} 17... Nxe3 {[%clk 0:01:42.6]} 18. Bxe3
{[%clk 0:02:32.2]} 18... Rxe3 {[%clk 0:01:44.5]} 19. Rhg1 {[%clk 0:02:22.4]}
19... Nxf5 {[%clk 0:01:41.5]} 20. h5 {[%clk 0:02:02.3]} 20... Kh8 {[%clk
0:01:17.6]} 21. Nxh7 {[%clk 0:01:54.2]} 21... Kxh7 {[%clk 0:01:14.9]} 22. Rg6
{[%clk 0:01:55.5]} 22... Qe7 {[%clk 0:00:50.4]} 23. Bxf5 {[%clk 0:01:53]} 23...
Re1+ {[%clk 0:00:49.2]} 24. Nd1 {[%clk 0:01:41.8]} 24... Kh8 {[%clk 0:00:35.7]}
25. Rxe1 {[%clk 0:01:30.1]} 25... Qxe1 {[%clk 0:00:37.6]} 26. Rxd6 {[%clk
0:01:31.3]} 1-0

[Event "*** Titled Tuesday 3|2 Blitz"]
[Site "Chess.com"]
[Date "2015.12.01"]
[Round "3"]
[White "chessloveyou"]
[Black "Grootneus"]
[Result "1-0"]
[WhiteElo "2152"]
[BlackElo "2009"]
[TimeControl "180+2"]
[EndTime "11:31:23 PST"]
[Termination "chessloveyou won by resignation"]

1. d4 {[%clk 0:03:01.9]} 1... Nf6 {[%clk 0:03:00.6]} 2. Nf3 {[%clk 0:03:01]}
2... c5 {[%clk 0:03:02]} 3. d5 {[%clk 0:03:00.2]} 3... e6 {[%clk 0:03:03.5]} 4.
dxe6 {[%clk 0:03:00.6]} 4... fxe6 {[%clk 0:03:05.4]} 5. g3 {[%clk 0:03:01]} 5...
d5 {[%clk 0:03:06.4]} 6. Bg2 {[%clk 0:03:01.8]} 6... Bd6 {[%clk 0:03:07.9]} 7.
c4 {[%clk 0:03:02.7]} 7... O-O {[%clk 0:03:07.5]} 8. O-O {[%clk 0:03:03.4]} 8...
Nc6 {[%clk 0:03:06.5]} 9. cxd5 {[%clk 0:03:04]} 9... exd5 {[%clk 0:03:08.4]} 10.
Nc3 {[%clk 0:03:04.7]} 10... d4 {[%clk 0:03:09.3]} 11. Nb5 {[%clk 0:03:05.5]}
11... Bb8 {[%clk 0:03:03.3]} 12. Ng5 {[%clk 0:03:00.7]} 12... a6 {[%clk
0:02:59.4]} 13. Qb3+ {[%clk 0:02:59.2]} 13... Kh8 {[%clk 0:02:59.1]} 14. Na3
{[%clk 0:02:58.7]} 14... Qe8 {[%clk 0:02:51]} 15. Nc4 {[%clk 0:02:51.2]} 15...
Bc7 {[%clk 0:02:47.2]} 16. Nb6 {[%clk 0:02:48.2]} 16... Rb8 {[%clk 0:02:41.2]}
17. Nxc8 {[%clk 0:02:31.9]} 17... Rxc8 {[%clk 0:02:43.1]} 18. Qxb7 {[%clk
0:02:32]} 18... Nb4 {[%clk 0:02:39.7]} 19. Bd2 {[%clk 0:02:22.7]} 19... a5
{[%clk 0:02:15.1]} 20. a3 {[%clk 0:02:17.4]} 20... Qxe2 {[%clk 0:02:04.4]} 21.
axb4 {[%clk 0:02:05.9]} 21... Qxd2 {[%clk 0:02:05.3]} 22. bxc5 {[%clk
0:01:56.9]} 22... Qxg5 {[%clk 0:02:04.2]} 23. c6 {[%clk 0:01:50.7]} 23... Ng4
{[%clk 0:01:22.8]} 24. h3 {[%clk 0:01:44.6]} 24... Ne5 {[%clk 0:01:13.5]} 25. f4
{[%clk 0:01:30.7]} 25... Qxg3 {[%clk 0:01:14]} 26. fxe5 {[%clk 0:01:31.3]} 26...
Bxe5 {[%clk 0:01:12.4]} 27. Rf7 {[%clk 0:01:27]} 27... Rxf7 {[%clk 0:00:46.9]}
28. Qxc8+ {[%clk 0:01:25.6]} 1-0

[Event "*** Titled Tuesday 3|2 Blitz"]
[Site "Chess.com"]
[Date "2015.12.01"]
[Round "3"]
[White "AndroQueen"]
[Black "jcibarra"]
[Result "0-1"]
[WhiteElo "2267"]
[BlackElo "2509"]
[TimeControl "180+2"]
[EndTime "11:31:32 PST"]
[Termination "jcibarra won on time"]

1. d4 {[%clk 0:03:01.9]} 1... Nf6 {[%clk 0:03:00.5]} 2. c4 {[%clk 0:03:02]} 2...
d6 {[%clk 0:03:01.2]} 3. Nc3 {[%clk 0:03:01.6]} 3... e5 {[%clk 0:03:02.1]} 4.
Nf3 {[%clk 0:03:03]} 4... e4 {[%clk 0:03:00.7]} 5. Ng5 {[%clk 0:03:01.9]} 5...
Qe7 {[%clk 0:03:01.1]} 6. Qc2 {[%clk 0:02:32.6]} 6... Bf5 {[%clk 0:03:01.5]} 7.
g4 {[%clk 0:02:19.9]} 7... Bg6 {[%clk 0:03:01.8]} 8. h4 {[%clk 0:02:04.3]} 8...
h5 {[%clk 0:02:57.9]} 9. gxh5 {[%clk 0:02:02.7]} 9... Rxh5 {[%clk 0:02:59.8]}
10. Bf4 {[%clk 0:01:59.3]} 10... Nc6 {[%clk 0:02:58.5]} 11. e3 {[%clk
0:01:58.6]} 11... O-O-O {[%clk 0:02:48.3]} 12. Be2 {[%clk 0:01:57.3]} 12... Rh8
{[%clk 0:02:42.7]} 13. a3 {[%clk 0:01:55.3]} 13... d5 {[%clk 0:02:36.2]} 14.
cxd5 {[%clk 0:01:32.3]} 14... Nxd5 {[%clk 0:02:35.9]} 15. Nxd5 {[%clk
0:01:34.2]} 15... Rxd5 {[%clk 0:02:35.1]} 16. Bc4 {[%clk 0:01:10.6]} 16... Rd7
{[%clk 0:02:28.3]} 17. Bb5 {[%clk 0:00:58.5]} 17... Qf6 {[%clk 0:02:22.5]} 18.
Bxc6 {[%clk 0:00:53.4]} 18... Qxc6 {[%clk 0:02:14.7]} 19. Qxc6 {[%clk
0:00:53.9]} 19... bxc6 {[%clk 0:02:16.6]} 20. Rc1 {[%clk 0:00:53.1]} 20... Kb7
{[%clk 0:02:17.7]} 21. Bg3 {[%clk 0:00:41.8]} 21... Bf5 {[%clk 0:02:15.1]} 22.
Nh3 {[%clk 0:00:35.8]} 22... Bg4 {[%clk 0:02:13.4]} 23. Ng5 {[%clk 0:00:21]}
23... f6 {[%clk 0:02:11.4]} 24. Nh3 {[%clk 0:00:14]} 24... g5 {[%clk 0:02:10.6]}
25. Kd2 {[%clk 0:00:09.4]} 25... Bf3 {[%clk 0:02:07.3]} 26. Rh2 {[%clk
0:00:09.8]} 26... c5 {[%clk 0:01:58.5]} 27. Rc4 {[%clk 0:00:05.4]} 27... gxh4
{[%clk 0:01:51.2]} 0-1

[Event "*** Titled Tuesday 3|2 Blitz"]
[Site "Chess.com"]
[Date "2015.12.01"]
[Round "3"]
[White "HansCoolNiemann"]
[Black "alturas_pacificas"]
[Result "1-0"]
[WhiteElo "2175"]
[BlackElo "2110"]
[TimeControl "180+2"]
[EndTime "11:31:40 PST"]
[Termination "HansCoolNiemann won by resignation"]

1. d4 {[%clk 0:02:57.7]} 1... d5 {[%clk 0:03:00.6]} 2. c4 {[%clk 0:02:56.8]}
2... c6 {[%clk 0:03:01.8]} 3. Nf3 {[%clk 0:02:56.5]} 3... Nf6 {[%clk 0:03:02.4]}
4. e3 {[%clk 0:02:56.6]} 4... Bf5 {[%clk 0:03:02.3]} 5. Nc3 {[%clk 0:02:55.9]}
5... e6 {[%clk 0:03:03.4]} 6. Nh4 {[%clk 0:02:54.5]} 6... Bg6 {[%clk 0:03:04.4]}
7. Qb3 {[%clk 0:02:51.2]} 7... Qb6 {[%clk 0:03:04.5]} 8. c5 {[%clk 0:02:48.9]}
8... Qxb3 {[%clk 0:03:05]} 9. axb3 {[%clk 0:02:48.9]} 9... Nbd7 {[%clk
0:03:06.5]} 10. Nxg6 {[%clk 0:02:47.6]} 10... hxg6 {[%clk 0:03:07]} 11. b4
{[%clk 0:02:49.5]} 11... a6 {[%clk 0:03:06.7]} 12. b5 {[%clk 0:02:47.7]} 12...
cxb5 {[%clk 0:03:07.8]} 13. Bxb5 {[%clk 0:02:40.4]} 13... Rc8 {[%clk 0:02:57.7]}
14. Bd3 {[%clk 0:02:38.6]} 14... Nb8 {[%clk 0:02:47.9]} 15. b4 {[%clk
0:02:35.5]} 15... Be7 {[%clk 0:02:44.1]} 16. b5 {[%clk 0:02:32]} 16... O-O
{[%clk 0:02:43.3]} 17. Bd2 {[%clk 0:02:27.8]} 17... axb5 {[%clk 0:02:40.6]} 18.
Nxb5 {[%clk 0:02:25.3]} 18... Nc6 {[%clk 0:02:40.4]} 19. O-O {[%clk 0:02:24.9]}
19... Ra8 {[%clk 0:02:41.1]} 20. Nc7 {[%clk 0:02:24.5]} 20... Rxa1 {[%clk
0:02:39.8]} 21. Rxa1 {[%clk 0:02:26.4]} 21... e5 {[%clk 0:02:35.5]} 22. Nb5
{[%clk 0:02:23.5]} 22... exd4 {[%clk 0:02:33.8]} 23. exd4 {[%clk 0:02:25.4]}
23... Ne4 {[%clk 0:02:32.9]} 24. Bxe4 {[%clk 0:02:24.7]} 24... dxe4 {[%clk
0:02:34]} 25. d5 {[%clk 0:02:24.8]} 25... Ne5 {[%clk 0:02:33]} 26. Bc3 {[%clk
0:02:17.7]} 26... Nd3 {[%clk 0:02:29.9]} 27. c6 {[%clk 0:02:16.5]} 27... bxc6
{[%clk 0:02:29.2]} 28. dxc6 {[%clk 0:02:18.4]} 28... Bc5 {[%clk 0:02:27.2]} 29.
c7 {[%clk 0:02:10.1]} 29... Bxf2+ {[%clk 0:02:18.8]} 30. Kf1 {[%clk 0:02:09.7]}
30... Bb6 {[%clk 0:02:14.6]} 31. Ra6 {[%clk 0:02:07.6]} 31... Bxc7 {[%clk
0:01:59.4]} 32. Nxc7 {[%clk 0:02:07.1]} 32... Rc8 {[%clk 0:02:00.9]} 33. Nd5
{[%clk 0:02:07.1]} 33... Kh7 {[%clk 0:01:56]} 34. Ra7 {[%clk 0:02:03.8]} 34...
e3 {[%clk 0:01:49.8]} 35. Rxf7 {[%clk 0:01:59]} 35... Nc1 {[%clk 0:01:45.3]} 36.
Bxg7 {[%clk 0:01:47.6]} 36... e2+ {[%clk 0:01:41.2]} 37. Ke1 {[%clk 0:01:47.6]}
37... Kg8 {[%clk 0:01:40.1]} 38. Re7 {[%clk 0:01:45.8]} 38... Rc6 {[%clk
0:01:36.5]} 39. Nf6+ {[%clk 0:01:43.8]} 39... Rxf6 {[%clk 0:01:35.6]} 40. Bxf6
{[%clk 0:01:45.7]} 40... Nd3+ {[%clk 0:01:34.8]} 41. Kxe2 {[%clk 0:01:45.7]}
41... Nf4+ {[%clk 0:01:36.3]} 42. Kf3 {[%clk 0:01:45.7]} 42... Nd5 {[%clk
0:01:37.7]} 43. Rg7+ {[%clk 0:01:45.8]} 43... Kh8 {[%clk 0:01:37.6]} 44. Rxg6+
{[%clk 0:01:44.5]} 44... Kh7 {[%clk 0:01:39.1]} 45. Rg7+ {[%clk 0:01:42.4]}
45... Kh8 {[%clk 0:01:40.6]} 46. Ba1 {[%clk 0:01:39.1]} 46... Nf4 {[%clk
0:01:41.5]} 47. Rg4+ {[%clk 0:01:38]} 47... Kh7 {[%clk 0:01:41.5]} 48. Kxf4
{[%clk 0:01:39.9]} 1-0

[Event "*** Titled Tuesday 3|2 Blitz"]
[Site "Chess.com"]
[Date "2015.12.01"]
[Round "3"]
[White "DeviatkinAndrey"]
[Black "Tobi-Wan-Kenobi"]
[Result "1-0"]
[WhiteElo "2490"]
[BlackElo "2338"]
[TimeControl "180+2"]
[EndTime "11:31:45 PST"]
[Termination "DeviatkinAndrey won by resignation"]

1. e4 {[%clk 0:03:01]} 1... c5 {[%clk 0:02:58.8]} 2. c3 {[%clk 0:03:01.3]} 2...
Nf6 {[%clk 0:02:58.7]} 3. e5 {[%clk 0:03:02.4]} 3... Nd5 {[%clk 0:02:59.6]} 4.
g3 {[%clk 0:03:03.2]} 4... Nc6 {[%clk 0:02:55.9]} 5. Bg2 {[%clk 0:03:03.6]} 5...
Qc7 {[%clk 0:02:56.8]} 6. Qe2 {[%clk 0:02:57.8]} 6... e6 {[%clk 0:02:53.2]} 7.
Nf3 {[%clk 0:02:56.3]} 7... b6 {[%clk 0:02:49.4]} 8. O-O {[%clk 0:02:56.2]} 8...
a5 {[%clk 0:02:50.5]} 9. Na3 {[%clk 0:02:51.6]} 9... Ba6 {[%clk 0:02:50.1]} 10.
Nb5 {[%clk 0:02:05.2]} 10... Qb8 {[%clk 0:02:47.9]} 11. a4 {[%clk 0:02:05.5]}
11... Be7 {[%clk 0:02:45.7]} 12. d3 {[%clk 0:01:59.4]} 12... O-O {[%clk
0:02:44.5]} 13. c4 {[%clk 0:01:48.9]} 13... Nc7 {[%clk 0:02:38.6]} 14. Bf4
{[%clk 0:01:40.8]} 14... Bb7 {[%clk 0:02:36.9]} 15. h4 {[%clk 0:01:37.8]} 15...
Nxb5 {[%clk 0:02:34.5]} 16. axb5 {[%clk 0:01:38.2]} 16... Nb4 {[%clk 0:02:35.6]}
17. h5 {[%clk 0:01:21.1]} 17... Qd8 {[%clk 0:02:26.3]} 18. h6 {[%clk 0:01:21.5]}
18... g6 {[%clk 0:02:21.8]} 19. Rad1 {[%clk 0:01:19.9]} 19... d5 {[%clk
0:02:17.4]} 20. exd6 {[%clk 0:00:57.6]} 20... Bxd6 {[%clk 0:02:18.2]} 21. Bxd6
{[%clk 0:00:52.8]} 21... Qxd6 {[%clk 0:02:18.8]} 22. d4 {[%clk 0:00:54.2]} 22...
Rad8 {[%clk 0:02:03.3]} 23. dxc5 {[%clk 0:00:50.9]} 23... Qxc5 {[%clk
0:02:05.2]} 24. b3 {[%clk 0:00:51.8]} 24... Qh5 {[%clk 0:01:49.7]} 25. Qe5
{[%clk 0:00:49.8]} 25... Qxe5 {[%clk 0:01:31.8]} 26. Nxe5 {[%clk 0:00:50.3]}
26... Bxg2 {[%clk 0:01:32.3]} 27. Kxg2 {[%clk 0:00:51.9]} 27... f6 {[%clk
0:01:33.1]} 28. Nd7 {[%clk 0:00:52.2]} 28... Rxd7 {[%clk 0:01:08.1]} 29. Rxd7
{[%clk 0:00:52]} 29... e5 {[%clk 0:01:06.8]} 30. Rg7+ {[%clk 0:00:51.3]} 30...
Kh8 {[%clk 0:01:07.2]} 31. Rd1 {[%clk 0:00:52.9]} 1-0

[Event "*** Titled Tuesday 3|2 Blitz"]
[Site "Chess.com"]
[Date "2015.12.01"]
[Round "3"]
[White "Keranke"]
[Black "VSERGUEI"]
[Result "1-0"]
[WhiteElo "2604"]
[BlackElo "2445"]
[TimeControl "180+2"]
[EndTime "11:32:09 PST"]
[Termination "Keranke won on time"]

1. d4 {[%clk 0:03:01.9]} 1... d5 {[%clk 0:03:00.4]} 2. Bf4 {[%clk 0:03:00.4]}
2... e6 {[%clk 0:02:58.5]} 3. e3 {[%clk 0:03:01.6]} 3... Bd6 {[%clk 0:02:59.5]}
4. Qg4 {[%clk 0:03:02.6]} 4... g6 {[%clk 0:02:51]} 5. Bxd6 {[%clk 0:03:01]} 5...
cxd6 {[%clk 0:02:50.9]} 6. Nc3 {[%clk 0:03:01.6]} 6... Nf6 {[%clk 0:02:49.5]} 7.
Qf4 {[%clk 0:02:57.5]} 7... Nc6 {[%clk 0:02:47.5]} 8. Nf3 {[%clk 0:02:54.6]}
8... a6 {[%clk 0:02:41.8]} 9. e4 {[%clk 0:02:44.6]} 9... dxe4 {[%clk 0:02:35.5]}
10. Nxe4 {[%clk 0:02:46.5]} 10... Nxe4 {[%clk 0:02:29]} 11. Qxe4 {[%clk
0:02:48.4]} 11... Qa5+ {[%clk 0:02:28.4]} 12. c3 {[%clk 0:02:48.9]} 12... d5
{[%clk 0:02:25.3]} 13. Qf4 {[%clk 0:02:48.9]} 13... Bd7 {[%clk 0:02:24]} 14. Ng5
{[%clk 0:02:44.4]} 14... f5 {[%clk 0:02:07.3]} 15. Qd6 {[%clk 0:02:37.9]} 15...
Nd8 {[%clk 0:01:41.3]} 16. Qe5 {[%clk 0:02:28.4]} 16... Nf7 {[%clk 0:01:29.9]}
17. Qg7 {[%clk 0:02:29.4]} 17... Rf8 {[%clk 0:00:45.1]} 18. Nxh7 {[%clk
0:02:30.1]} 18... Ke7 {[%clk 0:00:45.8]} 19. Qf6+ {[%clk 0:02:17.1]} 19... Kd6
{[%clk 0:00:44.9]} 20. Nxf8 {[%clk 0:02:17.9]} 20... Rxf8 {[%clk 0:00:44.8]} 21.
Bd3 {[%clk 0:02:12.6]} 21... Bb5 {[%clk 0:00:44.9]} 22. Rd1 {[%clk 0:02:01.5]}
22... Qxa2 {[%clk 0:00:40.6]} 23. Bxb5 {[%clk 0:01:59.4]} 23... axb5 {[%clk
0:00:40.5]} 24. O-O {[%clk 0:02:00.1]} 24... Qc4 {[%clk 0:00:20.6]} 25. Rfe1
{[%clk 0:02:00.2]} 25... Qc8 {[%clk 0:00:21.2]} 26. Rd3 {[%clk 0:01:49.7]} 26...
Nh6 {[%clk 0:00:14.3]} 27. Qe5+ {[%clk 0:01:29.5]} 27... Ke7 {[%clk 0:00:13.5]}
28. Qg7+ {[%clk 0:01:31.1]} 28... Nf7 {[%clk 0:00:13.1]} 29. Rde3 {[%clk
0:01:32.7]} 29... f4 {[%clk 0:00:10.5]} 30. Rxe6+ {[%clk 0:01:33.5]} 30... Qxe6
{[%clk 0:00:11.2]} 31. Rxe6+ {[%clk 0:01:35.4]} 31... Kxe6 {[%clk 0:00:12.3]}
32. Qxf8 {[%clk 0:01:37.1]} 1-0

[Event "*** Titled Tuesday 3|2 Blitz"]
[Site "Chess.com"]
[Date "2015.12.01"]
[Round "3"]
[White "Konavets"]
[Black "KNVB"]
[Result "1-0"]
[WhiteElo "2555"]
[BlackElo "2331"]
[TimeControl "180+2"]
[EndTime "11:32:24 PST"]
[Termination "Konavets won by resignation"]

1. e4 {[%clk 0:03:01.9]} 1... e6 {[%clk 0:02:56.9]} 2. d4 {[%clk 0:02:59.3]}
2... d5 {[%clk 0:02:57.9]} 3. Nd2 {[%clk 0:03:00.9]} 3... c5 {[%clk 0:02:58.9]}
4. exd5 {[%clk 0:03:02.1]} 4... Qxd5 {[%clk 0:03:00.8]} 5. Ngf3 {[%clk
0:03:02.9]} 5... cxd4 {[%clk 0:03:02]} 6. Bc4 {[%clk 0:03:04.1]} 6... Qd7 {[%clk
0:03:03.2]} 7. O-O {[%clk 0:03:05.1]} 7... Nf6 {[%clk 0:03:04.4]} 8. Nb3 {[%clk
0:03:06.2]} 8... Nc6 {[%clk 0:03:05.8]} 9. Nbxd4 {[%clk 0:03:07.2]} 9... Nxd4
{[%clk 0:03:07.7]} 10. Qxd4 {[%clk 0:03:07.8]} 10... a6 {[%clk 0:03:08.6]} 11.
Qh4 {[%clk 0:03:04.4]} 11... b5 {[%clk 0:02:51.3]} 12. Bb3 {[%clk 0:02:39.8]}
12... Bb7 {[%clk 0:02:23.4]} 13. Ne5 {[%clk 0:02:39.6]} 13... Qc7 {[%clk
0:02:10.3]} 14. Re1 {[%clk 0:02:36.5]} 14... Bd5 {[%clk 0:01:23]} 15. c4 {[%clk
0:02:09.9]} 15... Bb4 {[%clk 0:00:55]} 16. cxd5 {[%clk 0:02:02.6]} 16... Bxe1
{[%clk 0:00:55.4]} 17. Bf4 {[%clk 0:02:03.8]} 17... Bd2 {[%clk 0:00:37.9]} 18.
Bxd2 {[%clk 0:01:37.4]} 18... Qxe5 {[%clk 0:00:38]} 19. Bc3 {[%clk 0:01:38.4]}
19... Qf5 {[%clk 0:00:30.9]} 20. dxe6 {[%clk 0:01:26.9]} 20... O-O {[%clk
0:00:19.1]} 21. exf7+ {[%clk 0:01:26.1]} 21... Kh8 {[%clk 0:00:20.5]} 22. Re1
{[%clk 0:01:26.5]} 22... a5 {[%clk 0:00:16.8]} 23. Be6 {[%clk 0:01:24.6]} 23...
Qg6 {[%clk 0:00:14.9]} 24. f4 {[%clk 0:01:21.9]} 24... h6 {[%clk 0:00:04.4]} 25.
f5 {[%clk 0:01:22.4]} 25... Qg5 {[%clk 0:00:03.7]} 26. Qxg5 {[%clk 0:01:22.9]}
26... hxg5 {[%clk 0:00:05.6]} 27. Re3 {[%clk 0:01:24.1]} 27... g4 {[%clk
0:00:07.3]} 28. h3 {[%clk 0:01:24.9]} 28... g3 {[%clk 0:00:05.2]} 29. Rxg3
{[%clk 0:01:25]} 29... b4 {[%clk 0:00:06.7]} 30. Be5 {[%clk 0:01:11.1]} 30...
Rad8 {[%clk 0:00:07.5]} 31. Rg6 {[%clk 0:01:11.5]} 31... Rd1+ {[%clk 0:00:06.2]}
32. Kh2 {[%clk 0:01:12]} 32... Re1 {[%clk 0:00:07]} 33. Bxf6 {[%clk 0:01:08.6]}
33... gxf6 {[%clk 0:00:08.2]} 34. Rg8+ {[%clk 0:01:10.3]} 1-0